bitfinex/quotes_SOLUSD_20251106
["timestamp","ask_amount","ask_price","bid_price","bid_amount"]
[1762434542528,0.1,158.16,158.14,0.67]
[1762434543560,0.1,158.16,158.15,6.32311097]
[1762434545249,0.1,158.16,158.15,6.99311097]
[1762434545750,0.1,158.16,158.15,6.32311097]
[1762434546743,0.1,158.16,158.14,6.32351081]
[1762434547462,0.1,158.16,158.14,6.99351081]
[1762434551086,0.1,158.17,158.15,40.1132051]
[1762434551241,0.1,158.17,158.16,11.5112051]
[1762434551441,0.1,158.17,158.16,12.1812051]
[1762434551664,1e-08,158.17,158.16,13.90358251]
[1762434552166,1e-08,158.17,158.16,18.50391627]
[1762434552668,1e-08,158.17,158.16,16.11153886]
[1762434553040,1e-08,158.17,158.16,16.78153886]
[1762434553266,1e-08,158.17,158.16,18.50391627]
[1762434558466,1e-08,158.17,158.16,19.4710781]
[1762434559446,1e-08,158.17,158.16,16.78153886]
[1762434559665,1e-08,158.17,158.16,19.4710781]
[1762434560267,0.1,158.21,158.16,22.16061734]
[1762434560468,1e-08,158.22,158.2,12.47836693]
[1762434560657,1e-08,158.22,158.21,19.81836693]
[1762434561064,1e-08,158.22,158.21,20.48836693]
[1762434561566,1e-08,158.22,158.21,26.8090799]
[1762434562270,1e-08,158.22,158.21,16.10954066]
[1762434562489,1e-08,158.22,158.21,26.8590799]
[1762434564184,1e-08,158.22,158.21,17.84882769]
[1762434564359,0.69000001,158.22,158.21,9.78882769]
[1762434564560,0.69000001,158.22,158.2,9.78882769]
[1762434565089,0.69000001,158.22,158.2,16.10981318]
[1762434566082,1e-08,158.22,158.2,18.79935242]
[1762434567678,1e-08,158.22,158.2,19.51935242]
[1762434568079,1e-08,158.22,158.2,18.79935242]
[1762434568672,0.69000001,158.22,158.2,16.10981318]
[1762434568860,0.69000001,158.22,158.18,6.32184349]
[1762434569068,3.37953925,158.22,158.17,6.32200668]
[1762434569272,2.68953924,158.21,158.17,6.32200668]
[1762434569485,0.69,158.21,158.17,6.32200668]
[1762434569691,0.69,158.2,158.17,6.32200668]
[1762434569987,1e-08,158.22,158.17,6.32200668]
[1762434569988,1e-08,158.22,158.2,9.78882769]
[1762434570178,1e-08,158.22,158.2,12.47836693]
[1762434570372,1e-08,158.22,158.21,9.01025221]
[1762434571171,1e-08,158.22,158.21,6.32071297]
[1762434572590,1e-08,158.22,158.21,9.01025221]
[1762434572803,1e-08,158.22,158.21,6.32071297]
[1762434572995,1e-08,158.22,158.21,9.01025221]
[1762434573790,1e-08,158.22,158.2,26.13935703]
[1762434573971,0.69000001,158.22,158.2,16.10981779]
[1762434574167,0.69000001,158.22,158.2,18.79935703]
[1762434576991,1e-08,158.22,158.2,23.44981779]
[1762434577178,0.66000001,158.22,158.2,26.13935703]
[1762434580185,0.66000001,158.22,158.2,23.44981779]
[1762434580385,0.66000001,158.22,158.2,26.13935703]
[1762434581801,0.66000001,158.22,158.21,2.68953924]
[1762434582002,0.66000001,158.22,158.2,7.34]
[1762434582300,0.66000001,158.22,158.19,2.68953924]
[1762434583077,0.66000001,158.22,158.18,41.94505803]
[1762434583491,0.66000001,158.22,158.18,42.66505803]
[1762434584076,0.66000001,158.22,158.19,2.68953924]
[1762434584498,0.66000001,158.22,158.19,3.40953924]
[1762434584701,0.66000001,158.22,158.19,2.68953924]
[1762434585999,0.66000001,158.22,158.2,6.32111251]
[1762434590701,1e-08,158.22,158.2,9.01065175]
[1762434590903,1e-08,158.22,158.2,9.73065175]
[1762434591203,0.66000001,158.22,158.2,9.01065175]
[1762434591386,1e-08,158.22,158.2,9.01065175]
[1762434591895,1e-08,158.22,158.21,10.50882769]
[1762434592292,1e-08,158.22,158.21,9.78882769]
[1762434592693,1e-08,158.22,158.21,16.10954066]
[1762434595596,0.72000001,158.22,158.2,6.32097926]
[1762434597625,1e-08,158.22,158.2,6.32097926]
[1762434597791,1e-08,158.22,158.21,0.68]
[1762434598196,1e-08,158.22,158.21,13.15836693]
[1762434599095,1e-08,158.22,158.21,12.47836693]
[1762434599314,0.72000001,158.22,158.21,9.78882769]
[1762434599713,0.72000001,158.22,158.21,16.10954066]
[1762434600414,0.72000001,158.22,158.21,6.32071297]
[1762434601124,1e-08,158.22,158.21,7.00071297]
[1762434601591,1e-08,158.22,158.21,6.32071297]
[1762434602018,0.72000001,158.22,158.2,2.68953924]
[1762434602314,0.72000001,158.22,158.18,20.592]
[1762434602315,0.72000001,158.22,158.18,6.3215408]
[1762434602619,0.72000001,158.22,158.18,25.4958594]
[1762434602916,1e-08,158.22,158.2,2.68953924]
[1762434603115,1e-08,158.22,158.19,10.46882769]
[1762434603116,1e-08,158.22,158.21,2.68953924]
[1762434603319,1e-08,158.22,158.21,12.47836693]
[1762434603497,1e-08,158.22,158.21,19.4790799]
[1762434603916,1e-08,158.22,158.21,26.8190799]
[1762434606916,1e-08,158.22,158.21,19.4790799]
[1762434607124,1e-08,158.22,158.21,26.8190799]
[1762434608897,1e-08,158.22,158.21,19.4790799]
[1762434609093,1e-08,158.22,158.21,26.8190799]
[1762434610119,1e-08,158.22,158.21,16.78954066]
[1762434610318,1e-08,158.22,158.21,26.8190799]
[1762434612102,1e-08,158.22,158.21,24.12954066]
[1762434612307,0.1,158.26,158.24,9.78882769]
[1762434612625,0.1,158.26,158.25,19.81836693]
[1762434612809,0.1,158.26,158.25,12.47836693]
[1762434614100,0.1,158.26,158.25,18.79748225]
[1762434616511,0.1,158.26,158.25,16.10794301]
[1762434616711,0.1,158.26,158.25,19.47748225]
[1762434619110,0.1,158.26,158.25,16.78794301]
[1762434619317,0.1,158.26,158.25,19.47748225]
[1762434619628,0.1,158.26,158.25,16.78794301]
[1762434619809,0.1,158.26,158.25,16.10794301]
[1762434619810,0.82,158.26,158.25,16.10794301]
[1762434620011,0.82,158.26,158.25,18.79748225]
[1762434620210,0.82,158.26,158.25,16.10794301]
[1762434620818,0.1,158.26,158.25,17.82803882]
[1762434621215,0.1,158.26,158.25,9.78882769]
[1762434621420,0.1,158.26,158.25,16.10794301]
[1762434621825,0.1,158.26,158.25,17.82803882]
[1762434623735,0.1,158.26,158.25,18.54803882]
[1762434623923,0.1,158.27,158.26,11.5089235]
[1762434624128,0.1,158.27,158.26,19.5689235]
[1762434624512,0.1,158.27,158.26,25.88763953]
[1762434624707,0.1,158.27,158.26,24.16754372]
[1762434624918,0.1,158.27,158.26,25.88763953]
[1762434625418,0.1,158.27,158.26,25.16763953]
[1762434626137,0.82,158.27,158.26,25.16763953]
[1762434626336,0.1,158.27,158.26,25.16763953]
[1762434627334,0.1,158.32,158.28,9.78882769]
[1762434627537,0.1,158.32,158.31,1.72009581]
[1762434628041,0.1,158.32,158.31,9.06009581]
[1762434628244,0.1,158.32,158.31,9.78009581]
[1762434628417,0.1,158.32,158.31,19.5689235]
[1762434628927,0.1,158.32,158.31,25.88564385]
[1762434630043,1e-08,158.32,158.31,32.76602709]
[1762434630542,0.1,158.38,158.35,30.38082769]
[1762434630744,0.1,158.38,158.37,11.5089235]
[1762434630941,0.1,158.38,158.37,17.8232507]
[1762434632433,0.1,158.38,158.37,25.1632507]
[1762434632634,0.1,158.38,158.37,15.37442301]
[1762434632948,0.1,158.38,158.37,25.1632507]
[1762434633155,0.82,158.38,158.37,9.78882769]
[1762434633318,0.1,158.38,158.37,18.8489235]
[1762434633652,0.1,158.38,158.37,25.1632507]
[1762434634027,0.1,158.38,158.37,23.44315489]
[1762434634227,0.82,158.38,158.37,23.44315489]
[1762434635054,0.82,158.38,158.37,25.1632507]
[1762434635427,0.1,158.38,158.37,25.1632507]
[1762434636151,0.1,158.38,158.37,8.03442301]
[1762434636443,0.1,158.38,158.37,25.1632507]
[1762434636653,0.82,158.38,158.37,23.44315489]
[1762434636843,0.1,158.38,158.37,18.5432507]
[1762434637242,0.1,158.38,158.37,17.8232507]
[1762434638773,2.51009581,158.38,158.32,22.1071248]
[1762434638943,0.79,158.38,158.35,9.78882769]
[1762434639257,0.69,158.37,158.35,9.78882769]
[1762434640387,0.1,158.38,158.36,6.31472594]
[1762434640555,0.1,158.38,158.36,8.03482175]
[1762434641446,0.1,158.38,158.37,11.5089235]
[1762434642555,0.1,158.38,158.37,17.8232507]
[1762434644579,0.1,158.38,158.37,18.5332507]
[1762434645078,0.1,158.38,158.37,17.8232507]
[1762434646772,0.1,158.38,158.37,16.10315489]
[1762434646963,0.1,158.38,158.37,17.8232507]
[1762434647576,0.1,158.38,158.37,18.5332507]
[1762434647890,0.1,158.42,158.41,9.78882769]
[1762434648057,0.1,158.42,158.41,11.5089235]
[1762434648460,0.1,158.42,158.41,12.2189235]
[1762434648656,18.96633475,158.5,158.41,18.53165628]
[1762434648853,6.30801948,158.53,158.46,1.72009581]
[1762434648854,0.69,158.49,158.46,1.72009581]
[1762434649053,0.69,158.49,158.44,9.78882769]
[1762434649252,0.69,158.49,158.46,1.72009581]
[1762434650062,0.69,158.49,158.47,9.78882769]
[1762434650262,0.69,158.51,158.48,1.72009581]
[1762434650470,0.69,158.51,158.49,1.72009581]
[1762434650780,0.69,158.51,158.49,8.02959065]
[1762434651085,0.69,158.51,158.46,9.78882769]
[1762434651379,0.69,158.51,158.39,7.02320357]
[1762434651380,1.72009581,158.47,158.39,7.02320357]
[1762434651565,7.34,158.46,158.42,1.72009581]
[1762434651772,7.34,158.47,158.44,11.5089235]
[1762434652005,0.69,158.5,158.46,1.72009581]
[1762434652177,0.69,158.49,158.47,1.72009581]
[1762434652379,0.69,158.49,158.45,0.68]
[1762434652577,0.69,158.49,158.45,6.31113916]
[1762434652876,0.69,158.49,158.47,9.78882769]
[1762434653581,7.34,158.5,158.47,1.72009581]
[1762434653890,0.7,158.5,158.47,1.72009581]
[1762434654192,7.34,158.51,158.47,1.72009581]
[1762434654193,0.7,158.49,158.47,9.78882769]
[1762434655489,8.04,158.51,158.47,9.78882769]
[1762434655690,0.7,158.5,158.47,9.78882769]
[1762434657786,0.7,158.5,158.47,11.5089235]
[1762434657996,7.34,158.51,158.47,12.1889235]
[1762434658169,0.7,158.5,158.47,11.5089235]
[1762434658371,8.04,158.51,158.47,12.1889235]
[1762434658571,7.34,158.51,158.47,12.1889235]
[1762434658771,0.7,158.5,158.47,16.09912174]
[1762434658967,0.7,158.5,158.47,17.81921755]
[1762434659167,0.7,158.5,158.46,16.09954224]
[1762434659390,0.7,158.5,158.46,10.46882769]
[1762434659596,0.7,158.5,158.46,11.5089235]
[1762434660267,0.7,158.5,158.45,6.99085017]
[1762434660463,0.7,158.5,158.46,1.72009581]
[1762434660667,7.00924644,158.5,158.46,1.72009581]
[1762434661062,0.7,158.49,158.45,8.71094598]
[1762434661267,1.72009581,158.52,158.48,9.78882769]
[1762434661468,0.7,158.51,158.48,11.5089235]
[1762434661686,8.04,158.51,158.48,11.5089235]
[1762434662078,0.7,158.5,158.48,9.78882769]
[1762434662476,7.34,158.51,158.48,9.78882769]
[1762434662669,0.7,158.5,158.48,9.78882769]
[1762434663095,0.7,158.5,158.47,9.78882769]
[1762434663308,0.7,158.5,158.46,11.5089235]
[1762434663876,2.42009581,158.5,158.46,9.78882769]
[1762434664285,0.7,158.49,158.46,9.78882769]
[1762434664688,7.34,158.5,158.46,18.49949687]
[1762434664998,0.7,158.5,158.47,1.72009581]
[1762434665196,7.34,158.51,158.48,1.72009581]
[1762434665375,7.34,158.51,158.48,2.40009581]
[1762434666079,7.34,158.51,158.5,9.78882769]
[1762434666474,104.8,158.54,158.5,17.81807176]
[1762434666677,8.14,158.54,158.51,1.72009581]
[1762434666878,7.44,158.54,158.5,1.72009581]
[1762434667106,0.7,158.53,158.49,11.5089235]
[1762434667281,0.7,158.53,158.49,12.1889235]
[1762434667899,0.7,158.53,158.49,9.78882769]
[1762434667900,1.72009581,158.52,158.49,9.78882769]
[1762434668102,9.76009581,158.53,158.49,9.78882769]
[1762434668310,9.76009581,158.53,158.49,16.09815041]
[1762434668803,0.7,158.52,158.49,16.09815041]
[1762434668986,1.72009581,158.51,158.48,9.78882769]
[1762434669306,0.7,158.52,158.48,9.78882769]
[1762434669307,2.42009581,158.52,158.48,9.78882769]
[1762434669476,0.7,158.51,158.48,9.78882769]
[1762434669878,2.42009581,158.51,158.48,9.78882769]
[1762434670108,1.72009581,158.5,158.45,1.72009581]
[1762434670310,8.02975302,158.49,158.45,9.78882769]
[1762434670479,16.06975302,158.49,158.45,16.09996348]
[1762434670678,16.06975302,158.49,158.45,16.77996348]
[1762434671405,2.42009581,158.48,158.43,18.50085937]
[1762434671588,8.02,158.48,158.44,2.40009581]
[1762434672491,7.32,158.48,158.45,6.99113916]
[1762434672713,8.02,158.48,158.45,6.31113916]
[1762434672881,0.7,158.48,158.45,6.31113916]
[1762434673387,7.00998984,158.48,158.44,2.40009581]
[1762434673587,8.73008565,158.48,158.44,6.99143465]
[1762434673800,1.72009581,158.46,158.41,1.72009581]
[1762434674004,1.72009581,158.45,158.42,9.78882769]
[1762434674486,2.42009581,158.45,158.42,9.78882769]
[1762434674677,9.74009581,158.45,158.42,9.78882769]
[1762434674882,1.72009581,158.44,158.42,9.78882769]
[1762434675091,2.42009581,158.44,158.42,9.78882769]
[1762434675294,1.72009581,158.44,158.42,9.78882769]
[1762434675480,7.32,158.45,158.42,9.78882769]
[1762434675705,8.02,158.45,158.42,9.78882769]
[1762434675903,1.72009581,158.43,158.38,34.24566039]
[1762434676085,1.72009581,158.43,158.39,9.78882769]
[1762434676281,0.7,158.43,158.39,10.46882769]
[1762434676523,6.3119865,158.43,158.39,9.78882769]
[1762434676724,1.72009581,158.4,158.36,9.78882769]
[1762434676887,9.06009581,158.4,158.35,2.40009581]
[1762434677091,7.34,158.4,158.36,11.5089235]
[1762434677421,9.76009581,158.4,158.36,10.46882769]
[1762434678493,8.04,158.4,158.36,16.78334152]
[1762434678917,8.04,158.4,158.36,10.46882769]
[1762434678918,14.35318165,158.4,158.36,10.46882769]
[1762434679125,1.72009581,158.38,158.33,9.78882769]
[1762434679420,1.72009581,158.37,158.33,9.78882769]
[1762434679605,2.42009581,158.37,158.33,10.46882769]
[1762434679792,1.72009581,158.35,158.31,6.31661124]
[1762434679988,1.72009581,158.35,158.32,9.78882769]
[1762434680203,0.7,158.34,158.32,9.78882769]
[1762434680620,2.42009581,158.35,158.32,9.78882769]
[1762434681501,8.7352683,158.35,158.32,9.78882769]
[1762434681725,2.42009581,158.35,158.32,9.78882769]
[1762434681926,8.035227,158.35,158.32,9.78882769]
[1762434682131,0.7,158.34,158.3,6.99703327]
[1762434682334,3.38604436,158.34,158.29,20.592]
[1762434682535,3.38604436,158.34,158.3,9.78882769]
[1762434682838,3.39604436,158.33,158.3,9.78882769]
[1762434683335,0.71,158.32,158.3,9.78882769]
[1762434683835,2.68604436,158.34,158.3,16.1058085]
[1762434684133,0.71,158.33,158.3,16.1058085]
[1762434684513,0.71,158.33,158.3,9.78882769]
[1762434685534,0.71,158.33,158.3,16.10589917]
[1762434686017,0.71,158.33,158.3,9.78882769]
[1762434686734,3.39604436,158.33,158.3,9.78882769]
[1762434686911,0.71,158.32,158.3,9.78882769]
[1762434688527,9.71251342,158.32,158.28,16.10666712]
[1762434688907,3.39604436,158.31,158.28,9.78882769]
[1762434689409,0.71,158.3,158.28,9.78882769]
[1762434690121,2.68604436,158.32,158.28,16.10663499]
[1762434690328,0.71,158.31,158.28,16.10663499]
[1762434690629,3.39604436,158.31,158.28,9.78882769]
[1762434690826,10.73604436,158.31,158.28,9.78882769]
[1762434691210,8.05,158.31,158.28,9.78882769]
[1762434691409,10.02604436,158.31,158.28,9.78882769]
[1762434691633,0.71,158.3,158.28,9.78882769]
[1762434692130,10.73604436,158.31,158.28,9.78882769]
[1762434692338,0.71,158.3,158.28,9.78882769]
[1762434693023,0.71,158.3,158.28,16.1067239]
[1762434693216,10.02604436,158.31,158.28,9.78882769]
[1762434696239,17.05436116,158.27,158.26,0.2]
[1762434701850,21.38163992,158.3,158.26,0.2]
[1762434701851,104.7,158.3,158.26,9.86470339]
[1762434702150,7.34,158.31,158.29,2.68604436]
[1762434702336,7.34,158.31,158.3,2.68604436]
[1762434702528,7.34,158.31,158.29,2.68604436]
[1762434702927,7.34,158.31,158.29,3.34604436]
[1762434703430,7.34,158.31,158.29,9.66340886]
[1762434703845,9.71108593,158.36,158.3,13.13487205]
[1762434704045,7.34,158.35,158.31,2.68604436]
[1762434704550,8.05,158.35,158.31,3.34604436]
[1762434704754,0.71,158.34,158.3,12.47487205]
[1762434704959,3.39604436,158.34,158.3,9.78882769]
[1762434705251,2.68604436,158.32,158.28,6.97787904]
[1762434705650,3.39604436,158.32,158.28,6.97787904]
[1762434705848,7.34,158.31,158.28,6.31787904]
[1762434706049,7.34,158.31,158.28,6.97787904]
[1762434707358,9.71239684,158.32,158.28,6.97787904]
[1762434707846,7.34,158.31,158.28,6.97787904]
[1762434708043,7.34,158.31,158.29,0.66]
[1762434708558,9.00138067,158.35,158.3,2.68604436]
[1762434708761,7.34,158.34,158.3,2.68604436]
[1762434708968,7.34,158.33,158.31,0.66]
[1762434709665,3.39604436,158.35,158.31,0.66]
[1762434709840,3.39604436,158.35,158.31,6.97655114]
[1762434710250,7.34,158.34,158.31,6.97655114]
[1762434711256,9.71118065,158.35,158.31,6.97655114]
[1762434711633,9.00118065,158.35,158.31,6.97655114]
[1762434711856,10.73604436,158.34,158.31,6.31655114]
[1762434712062,9.71160052,158.34,158.3,0.66]
[1762434712357,2.68604436,158.34,158.3,10.47882769]
[1762434712561,7.34,158.33,158.3,0.69]
[1762434712864,2.68604436,158.34,158.31,0.69]
[1762434713171,3.36604436,158.34,158.3,10.47882769]
[1762434713339,7.34,158.33,158.3,10.47882769]
[1762434713767,3.36604436,158.34,158.3,10.47882769]
[1762434713946,7.34,158.33,158.3,16.79580549]
[1762434714269,2.68604436,158.34,158.31,0.69]
[1762434714569,2.68604436,158.35,158.31,0.69]
[1762434714749,9.00119923,158.35,158.31,0.69]
[1762434714952,3.36604436,158.34,158.3,16.10580549]
[1762434715156,7.34,158.33,158.3,16.79580549]
[1762434715357,6.31484828,158.36,158.31,0.69]
[1762434715669,8.02,158.35,158.31,0.69]
[1762434715845,2.68604436,158.34,158.31,7.00666615]
[1762434716048,7.34,158.33,158.31,7.00666615]
[1762434716562,3.36604436,158.34,158.3,16.10588302]
[1762434716738,7.34,158.33,158.31,0.69]
[1762434716939,9.68157303,158.34,158.31,0.69]
[1762434717558,7.34,158.33,158.31,0.69]
[1762434718462,3.36604436,158.34,158.31,0.69]
[1762434718663,7.34,158.33,158.31,0.69]
[1762434718837,9.68168147,158.34,158.3,16.10588302]
[1762434719159,10.70604436,158.33,158.27,0.69]
[1762434719362,10.70604436,158.33,158.28,9.78882769]
[1762434719363,2.68604436,158.3,158.28,9.78882769]
[1762434719566,7.34,158.3,158.28,9.78882769]
[1762434719748,7.34,158.3,158.28,10.47882769]
[1762434719949,7.34,158.3,158.28,16.79665837]
[1762434720244,2.68604436,158.32,158.29,0.69]
[1762434720452,104.7,158.33,158.29,0.69]
[1762434720864,104.7,158.33,158.31,9.78882769]
[1762434721058,104.7,158.33,158.32,9.78882769]
[1762434721368,0.68,158.36,158.32,10.47882769]
[1762434721880,7.34,158.35,158.32,10.47882769]
[1762434722581,2.68604436,158.33,158.28,0.69]
[1762434722873,2.68604436,158.31,158.27,6.31817194]
[1762434723046,2.68604436,158.3,158.27,9.78882769]
[1762434723241,2.68604436,158.29,158.26,0.2]
[1762434723463,2.68604436,158.29,158.26,9.98882769]
[1762434723675,10.02604436,158.29,158.26,7.20867951]
[1762434724273,2.68604436,158.29,158.27,9.78882769]
[1762434724571,3.36604436,158.28,158.26,0.2]
[1762434724775,2.68604436,158.27,158.26,0.2]
[1762434724947,10.70604436,158.27,158.26,0.2]
[1762434725146,3.36604436,158.27,158.26,0.2]
[1762434725378,10.70604436,158.27,158.26,0.2]
[1762434725577,3.36604436,158.27,158.26,0.2]
[1762434725874,7.34,158.28,158.26,0.2]
[1762434726049,29.5948287,158.31,158.27,9.78882769]
[1762434726251,29.5948287,158.31,158.27,16.10713374]
[1762434726252,7.34,158.3,158.27,16.10713374]
[1762434726449,7.34,158.36,158.27,16.10713374]
[1762434726450,23.12695133,158.36,158.27,16.10713374]
[1762434726665,23.12695133,158.36,158.29,12.47487205]
[1762434726666,2.68604436,158.34,158.29,12.47487205]
[1762434727163,7.34,158.33,158.3,0.69]
[1762434727461,7.34,158.32,158.29,9.78882769]
[1762434727662,7.34,158.32,158.29,16.79632208]
[1762434728769,7.34,158.32,158.29,10.47882769]
[1762434728950,7.34,158.32,158.29,16.79630176]
[1762434729361,7.34,158.32,158.29,19.48234612]
[1762434729667,0.68,158.33,158.29,19.48234612]
[1762434729856,8.02,158.33,158.29,19.48234612]
[1762434731176,7.34,158.33,158.29,19.48234612]
[1762434731358,8.02,158.33,158.29,19.48234612]
[1762434731681,0.68,158.33,158.29,19.48234612]
[1762434731979,8.02,158.33,158.29,19.48234612]
[1762434732567,2.68604436,158.35,158.31,9.78882769]
[1762434732872,7.34,158.34,158.31,9.78882769]
[1762434733055,8.02,158.34,158.31,10.47882769]
[1762434733564,111.01472627,158.36,158.32,3.37604436]
[1762434733769,114.38077063,158.36,158.32,0.69]
[1762434734071,7.34,158.35,158.32,0.69]
[1762434736777,17.02122786,158.35,158.31,16.105325]
[1762434736979,9.68122786,158.35,158.31,16.795325]
[1762434737156,7.34,158.34,158.31,10.47882769]
[1762434737357,10.70604436,158.34,158.3,9.78882769]
[1762434737556,10.70604436,158.34,158.3,10.47882769]
[1762434737959,0.68,158.33,158.3,10.47882769]
[1762434738159,8.02,158.34,158.3,10.47882769]
[1762434738364,7.34,158.34,158.31,0.69]
[1762434738996,104.7,158.36,158.32,2.68604436]
[1762434739167,0.68,158.39,158.33,2.68604436]
[1762434739168,10.02604436,158.38,158.33,2.68604436]
[1762434739374,10.02604436,158.38,158.33,3.37604436]
[1762434739686,7.34,158.38,158.35,9.78882769]
[1762434739898,13.6539695,158.38,158.35,9.78882769]
[1762434740102,3.36604436,158.37,158.32,3.37604436]
[1762434740270,9.0007703,158.36,158.32,7.00627889]
[1762434740466,9.6807703,158.36,158.32,0.69]
[1762434740688,0.68,158.35,158.31,12.47487205]
[1762434740890,2.68604436,158.33,158.31,9.78882769]
[1762434741080,2.68604436,158.33,158.3,20.592]
[1762434741284,3.36604436,158.33,158.29,10.47882769]
[1762434741783,10.02604436,158.33,158.3,0.69]
[1762434741985,10.02604436,158.33,158.29,9.78882769]
[1762434741986,2.68604436,158.31,158.28,9.78882769]
[1762434742484,2.68604436,158.29,158.26,9.98882769]
[1762434742789,2.68604436,158.27,158.26,0.2]
[1762434743294,3.38604436,158.27,158.26,0.2]
[1762434744391,11.05215036,158.27,158.26,0.2]
[1762434744772,18.39215036,158.27,158.26,0.2]
[1762434748073,10.35176191,158.28,158.26,0.2]
[1762434748275,7.34,158.27,158.26,0.2]
[1762434751303,108.73383356,158.29,158.26,0.89]
[1762434751610,7.34,158.28,158.26,0.2]
[1762434753800,7.34,158.28,158.26,0.89]
[1762434753993,104.7,158.29,158.27,0.69]
[1762434754186,7.34,158.28,158.27,0.69]
[1762434755305,7.34,158.28,158.27,7.0083168]
[1762434755613,7.34,158.28,158.27,0.69]
[1762434756187,7.34,158.28,158.27,7.0083168]
[1762434757206,112.04,158.29,158.27,7.0083141]
[1762434757406,112.04,158.29,158.27,6.3183141]
[1762434757708,112.04,158.29,158.28,0.71]
[1762434758296,112.04,158.29,158.27,6.3183141]
[1762434758491,112.04,158.29,158.27,7.0283141]
[1762434758808,112.04,158.29,158.28,0.71]
[1762434761102,112.04,158.29,158.27,6.3183141]
[1762434761503,112.04,158.29,158.28,0.71]
[1762434762793,104.7,158.29,158.28,0.71]
[1762434763000,104.7,158.29,158.28,7.02791761]
[1762434763914,104.7,158.29,158.28,6.31791761]
[1762434764116,104.7,158.29,158.27,7.0283168]
[1762434764411,104.7,158.29,158.28,0.71]
[1762434765194,104.7,158.29,158.28,7.02791761]
[1762434766335,104.7,158.29,158.26,0.2]
[1762434766613,104.7,158.29,158.27,9.78882769]
[1762434766910,112.04,158.29,158.27,10.49882769]
[1762434767116,112.04,158.29,158.28,0.71]
[1762434767292,104.7,158.29,158.28,0.71]
[1762434767486,112.04,158.29,158.28,0.71]
[1762434767914,104.7,158.29,158.28,10.49882769]
[1762434768116,104.7,158.29,158.28,12.21840368]
[1762434768315,112.7347324,158.35,158.3,9.78882769]
[1762434768497,7.34,158.34,158.3,11.50840368]
[1762434768697,7.34,158.33,158.3,12.21840368]
[1762434768899,6.31485229,158.36,158.33,9.78882769]
[1762434768900,0.69,158.36,158.33,9.78882769]
[1762434769122,2.40957599,158.38,158.33,11.50840368]
[1762434769295,8.03,158.37,158.33,12.21840368]
[1762434769494,0.69,158.38,158.35,9.78882769]
[1762434769722,104.7,158.41,158.37,1.71957599]
[1762434769919,0.69,158.42,158.37,1.71957599]
[1762434770213,1.71957599,158.41,158.36,2.42957599]
[1762434770396,1.71957599,158.41,158.37,6.3143272]
[1762434770600,7.34,158.4,158.37,8.03390319]
[1762434770914,7.34,158.4,158.37,8.74390319]
[1762434771117,7.34,158.4,158.37,7.0243272]
[1762434771715,7.34,158.4,158.37,8.74390319]
[1762434772318,7.34,158.4,158.38,6.99377334]
[1762434772518,0.69,158.42,158.38,8.71334933]
[1762434772717,7.34,158.41,158.38,1.71957599]
[1762434772905,7.34,158.41,158.37,8.03385695]
[1762434773101,7.34,158.41,158.37,8.71385695]
[1762434773298,7.34,158.41,158.38,12.18840368]
[1762434773601,1.71957599,158.43,158.38,12.18840368]
[1762434773899,7.34,158.42,158.39,2.39957599]
[1762434774207,0.68,158.43,158.4,1.71957599]
[1762434774402,7.34,158.42,158.39,2.39957599]
[1762434774715,7.34,158.42,158.4,1.71957599]
[1762434774916,7.34,158.42,158.4,2.39957599]
[1762434775096,7.34,158.42,158.4,1.71957599]
[1762434776213,7.34,158.42,158.39,8.71309729]
[1762434777698,7.34,158.42,158.4,2.39957599]
[1762434777897,7.34,158.42,158.4,1.71957599]
[1762434779303,7.34,158.42,158.4,2.39957599]
[1762434779629,7.34,158.42,158.4,8.71258638]
[1762434779829,7.34,158.42,158.4,8.03258638]
[1762434780030,7.34,158.42,158.39,6.99343041]
[1762434780211,7.34,158.42,158.4,1.71957599]
[1762434780896,7.34,158.42,158.4,2.39957599]